bitfinex/quotes_BTCUSD_20250615
["timestamp","ask_amount","ask_price","bid_price","bid_amount"]
[1750023013519,1.70909417,105030.0,105020.0,0.03354005]
[1750023013738,1.74725125,105030.0,105020.0,0.02684599]
[1750023013972,1.74725125,105030.0,105020.0,0.03354011]
[1750023014193,1.54730839,105030.0,105020.0,0.02684599]
[1750023014650,1.73773017,105030.0,105020.0,0.02684599]
[1750023014873,0.32039705,105030.0,105020.0,0.03354011]
[1750023015110,0.86557917,105030.0,105020.0,0.03354009]
[1750023015337,0.86557917,105030.0,105020.0,0.03354008]
[1750023015559,0.86557917,105030.0,105020.0,0.02684599]
[1750023015778,0.85605827,105030.0,105020.0,0.03354008]
[1750023015997,0.86557917,105030.0,105020.0,0.03353988]
[1750023016216,0.85605827,105030.0,105020.0,0.03353984]
[1750023016444,0.85605827,105030.0,105020.0,0.03353968]
[1750023016649,0.70829917,105030.0,105020.0,0.03353985]
[1750023016863,0.85605827,105030.0,105020.0,0.03353982]
[1750023017080,0.86557917,105030.0,105020.0,0.03353982]
[1750023017290,0.86557917,105030.0,105020.0,0.0335399]
[1750023017504,0.96172839,105030.0,105020.0,0.03353989]
[1750023017815,0.97124947,105030.0,105020.0,0.03353985]
[1750023018235,1.16167125,105030.0,105020.0,0.03353985]
[1750023018449,1.16167125,105030.0,105020.0,0.04023372]
[1750023018660,1.15215089,105030.0,105020.0,0.04023383]
[1750023019138,1.15215089,105030.0,105020.0,0.03353985]
[1750023019763,1.15215089,105030.0,105020.0,0.04023395]
[1750023020232,0.99487089,105030.0,105020.0,0.04023395]
[1750023020438,1.15215089,105030.0,105020.0,0.04023415]
[1750023020863,1.15215089,105030.0,105020.0,0.03353985]
[1750023021069,0.96172911,105030.0,105020.0,0.04023401]
[1750023021287,0.95220803,105030.0,105020.0,0.03353985]
[1750023022349,0.96172902,105030.0,105020.0,0.04023424]
[1750023022559,0.9712501,105030.0,105020.0,0.03353985]
[1750023023243,0.96172902,105030.0,105020.0,0.03353985]
[1750023023670,0.96172902,105030.0,105020.0,0.04023447]
[1750023023881,0.95220803,105030.0,105020.0,0.03353985]
[1750023024109,0.94268713,105030.0,105020.0,0.04023432]
[1750023024337,0.94268713,105030.0,105020.0,0.04023414]
[1750023024551,0.84653791,105030.0,105020.0,0.03353985]
[1750023024769,0.83701719,105030.0,105020.0,0.04023398]
[1750023024994,0.84653791,105030.0,105020.0,0.04023399]
[1750023025202,0.84653782,105030.0,105020.0,0.06196575]
[1750023025419,0.84653782,105030.0,105020.0,0.06865939]
[1750023025628,0.84653782,105030.0,105020.0,0.06196575]
[1750023025836,0.85605863,105030.0,105020.0,0.06196575]
[1750023026048,0.85605863,105030.0,105020.0,0.06865937]
[1750023026262,0.85605863,105030.0,105020.0,0.06196575]
[1750023026745,0.85605863,105030.0,105020.0,0.0686594]
[1750023026978,0.96172884,105030.0,105020.0,0.06865956]
[1750023027421,0.95220785,105030.0,105020.0,0.06865979]
[1750023027634,0.96172884,105030.0,105020.0,0.06196575]
[1750023027848,0.96172884,105030.0,105020.0,0.06865992]
[1750023027849,0.95220785,105030.0,105020.0,0.06865992]
[1750023028048,1.41136705,105030.0,105020.0,0.06196575]
[1750023028324,1.75136705,105030.0,105020.0,0.06865983]
[1750023028541,1.75136705,105030.0,105020.0,0.04023422]
[1750023028805,1.75136705,105030.0,105020.0,0.04023427]
[1750023029039,1.76088804,105030.0,105020.0,0.04023427]
[1750023029274,1.76088804,105030.0,105020.0,0.04023425]
[1750023029732,1.9608309,105030.0,105020.0,0.04023425]
[1750023029946,1.9608309,105030.0,105020.0,0.04023438]
[1750023030163,1.9608309,105030.0,105020.0,0.04023434]
[1750023030606,1.9608309,105030.0,105020.0,0.03353985]
[1750023031272,1.9608309,105030.0,105020.0,0.04023435]
[1750023031487,1.9608309,105030.0,105020.0,0.04023436]
[1750023031700,1.9608309,105030.0,105020.0,0.04023449]
[1750023031936,1.9608309,105030.0,105020.0,0.04023458]
[1750023032174,1.9608309,105030.0,105020.0,0.03353985]
[1750023032392,1.9608309,105030.0,105020.0,0.04023485]
[1750023032591,1.9608309,105030.0,105020.0,0.03353985]
[1750023032805,1.9608309,105030.0,105020.0,0.04023491]
[1750023033029,1.9608309,105030.0,105020.0,0.03353985]
[1750023033303,1.9608309,105030.0,105020.0,0.04023482]
[1750023033520,1.95131045,105030.0,105020.0,0.04023447]
[1750023033735,1.95131045,105030.0,105020.0,0.03353985]
[1750023034135,1.95131045,105030.0,105020.0,0.04023444]
[1750023034352,1.75136759,105030.0,105020.0,0.04023445]
[1750023034561,1.94178937,105030.0,105020.0,0.03353985]
[1750023034975,2.62327315,105030.0,105020.0,0.03353985]
[1750023035189,2.43285137,105030.0,105020.0,0.04023435]
[1750023035838,2.43285137,105030.0,105020.0,0.04023443]
[1750023036040,2.43285137,105030.0,105020.0,0.04018985]
[1750023036253,2.43285137,105030.0,105020.0,0.0401899]
[1750023036470,2.44237245,105030.0,105020.0,0.04019004]
[1750023036608,2.44237245,105030.0,105020.0,0.04019009]
[1750023036822,2.63279423,105030.0,105020.0,0.04019009]
[1750023037054,2.63279423,105030.0,105020.0,0.03349514]
[1750023037282,2.63279423,105030.0,105020.0,0.04019012]
[1750023037475,2.19312948,105030.0,105020.0,0.10479012]
[1750023037684,2.36941056,105030.0,105020.0,0.04019008]
[1750023037934,2.37893146,105030.0,105020.0,0.04019005]
[1750023038174,2.28278224,105030.0,105020.0,0.04019005]
[1750023038399,2.28278224,105030.0,105020.0,0.03349514]
[1750023038630,2.28278224,105030.0,105020.0,0.06869164]
[1750023039044,2.47320402,105030.0,105020.0,0.06869164]
[1750023039253,2.31288224,105030.0,105020.0,0.06869163]
[1750023039460,2.31288224,105030.0,105020.0,0.06199674]
[1750023039690,2.31288224,105030.0,105020.0,0.06869164]
[1750023039922,2.31288224,105030.0,105020.0,0.06199674]
[1750023040130,2.31288224,105030.0,105020.0,0.06869163]
[1750023040509,2.31288224,105030.0,105020.0,0.06199674]
[1750023040722,2.50330402,105030.0,105020.0,0.06199674]
[1750023040976,2.5128251,105030.0,105020.0,0.06199674]
[1750023041409,2.5128251,105030.0,105020.0,0.06869125]
[1750023041838,2.5128251,105030.0,105020.0,0.0686913]
[1750023042299,2.32240332,105030.0,105020.0,0.06869132]
[1750023042517,2.32240332,105030.0,105020.0,0.06199674]
[1750023042735,2.32240332,105030.0,105020.0,0.06869134]
[1750023042964,2.29230332,105030.0,105020.0,0.06199674]
[1750023043183,2.28278224,105030.0,105020.0,0.06869133]
[1750023043408,2.29230332,105030.0,105020.0,0.06869127]
[1750023043677,2.28278224,105030.0,105020.0,0.06869112]
[1750023043894,2.47320402,105030.0,105020.0,0.06869119]
[1750023044115,2.4827251,105030.0,105020.0,0.06199674]
[1750023044580,2.4827251,105030.0,105020.0,0.06868901]
[1750023044796,2.28278224,105030.0,105020.0,0.06199674]
[1750023045003,2.29230332,105030.0,105020.0,0.06868908]
[1750023045212,2.29230332,105030.0,105020.0,0.06199674]
[1750023045633,2.28278224,105030.0,105020.0,0.06868886]
[1750023045854,2.29230332,105030.0,105020.0,0.06199674]
[1750023046106,2.29230332,105030.0,105020.0,0.06868896]
[1750023046301,2.29230332,105030.0,105020.0,0.06868887]
[1750023046529,2.4827251,105030.0,105020.0,0.06199674]
[1750023046755,2.4827251,105030.0,105020.0,0.06868887]
[1750023047185,2.53670483,105030.0,105020.0,0.06868887]
[1750023047425,2.53670483,105030.0,105020.0,0.06868886]
[1750023047642,2.27326197,105030.0,105020.0,0.06868887]
[1750023047865,2.28278305,105030.0,105020.0,0.06199674]
[1750023048086,2.28278305,105030.0,105020.0,0.06868886]
[1750023048534,2.56009294,105030.0,105020.0,0.06868886]
[1750023049028,2.56009294,105030.0,105020.0,0.06199674]
[1750023049457,2.56009294,105030.0,105020.0,0.06868895]
[1750023049669,2.56009294,105030.0,105020.0,0.06199674]
[1750023049670,2.60715159,105030.0,105020.0,0.06199674]
[1750023049899,2.59763069,105030.0,105020.0,0.04018815]
[1750023050128,2.59763069,105030.0,105020.0,0.03349514]
[1750023050559,2.59763069,105030.0,105020.0,0.04018865]
[1750023050773,2.59763069,105030.0,105020.0,0.03349514]
[1750023051214,2.59763069,105030.0,105020.0,0.04018884]
[1750023051453,2.59763069,105030.0,105020.0,0.03349514]
[1750023051670,2.59763069,105030.0,105020.0,0.03918885]
[1750023051886,2.13847149,105030.0,105020.0,0.03618885]
[1750023052074,2.14047149,105030.0,105020.0,0.02949514]
[1750023052583,2.75180444,105030.0,105020.0,0.03619148]
[1750023052802,2.75380444,105030.0,105020.0,0.03619189]
[1750023053022,2.75380444,105030.0,105020.0,0.02949514]
[1750023053239,2.75380444,105030.0,105020.0,0.03619192]
[1750023053465,2.75380444,105030.0,105020.0,0.0361919]
[1750023053914,2.75380444,105030.0,105020.0,0.02949514]
[1750023054358,2.75380444,105030.0,105020.0,0.03619207]
[1750023054590,2.75380444,105030.0,105020.0,0.00669386]
[1750023054814,0.21902565,105010.0,105000.0,0.10409096]
[1750023055029,1.65127196,105010.0,105000.0,0.15751908]
[1750023055277,1.65127196,105010.0,105000.0,0.12691908]
[1750023055927,1.6417497,105010.0,105000.0,0.12691908]
[1750023056149,1.6417497,105010.0,105000.0,0.12791908]
[1750023056828,1.6417497,105010.0,105000.0,0.10141748]
[1750023057268,1.63222717,105010.0,105000.0,0.10141748]
[1750023057936,1.63222717,105010.0,105000.0,0.10140707]
[1750023058412,2.45792717,105010.0,105000.0,0.10140707]
[1750023059178,2.51290436,105010.0,105000.0,0.10140707]
[1750023059620,2.51290436,105010.0,105000.0,0.06040707]
[1750023059844,2.44840436,105010.0,105000.0,0.06040707]
[1750023061021,2.51290436,105010.0,105000.0,0.06040707]
[1750023061535,2.48060436,105010.0,105000.0,0.06040707]
[1750023061965,2.44840436,105010.0,105000.0,0.06040707]
[1750023063714,1.96270436,105010.0,105000.0,0.06040707]
[1750023064211,1.99134936,105010.0,105000.0,0.06040707]
[1750023067014,1.99134936,105010.0,105000.0,0.06707172]
[1750023067432,1.99134936,105010.0,105000.0,0.06040707]
[1750023067643,1.99134936,105010.0,105000.0,0.06707172]
[1750023067849,1.99134936,105010.0,105000.0,0.0670718]
[1750023068096,1.99134936,105010.0,105000.0,0.06707191]
[1750023068302,1.99134936,105010.0,105000.0,0.06707201]
[1750023068514,1.99134936,105010.0,105000.0,0.06040707]
[1750023068731,1.99134936,105010.0,105000.0,0.0670719]
[1750023068946,1.99134936,105010.0,105000.0,0.06607189]
[1750023069156,1.99134936,105010.0,105000.0,0.05940707]
[1750023069370,1.99134936,105010.0,105000.0,0.06707169]
[1750023069623,1.99134936,105010.0,105000.0,0.06707181]
[1750023069843,1.99134936,105010.0,105000.0,0.09727185]
[1750023070294,1.99134936,105010.0,105000.0,0.09727192]
[1750023070527,1.22077641,105010.0,105000.0,0.09627213]
[1750023070741,1.37801641,105010.0,105000.0,0.12627204]
[1750023070964,1.329676,105010.0,105000.0,0.12060707]
[1750023071186,1.329676,105010.0,105000.0,0.12527205]
[1750023071413,1.329676,105010.0,105000.0,0.11760707]
[1750023071629,1.329676,105010.0,105000.0,0.12727206]
[1750023071937,1.329676,105010.0,105000.0,0.11960707]
[1750023072136,1.329676,105010.0,105000.0,0.12460707]
[1750023072351,1.329676,105010.0,105000.0,0.13127204]
[1750023072763,1.329676,105010.0,105000.0,0.13127203]
[1750023072957,1.94300895,105010.0,105000.0,0.13127204]
[1750023073156,1.94300895,105010.0,105000.0,0.13127206]
[1750023073364,1.94300895,105010.0,105000.0,0.13127207]
[1750023073570,1.94300895,105010.0,105000.0,0.12460707]
[1750023073792,1.94300895,105010.0,105000.0,0.13127205]
[1750023074047,1.94300895,105010.0,105000.0,0.12460707]
[1750023074260,1.94300895,105010.0,105000.0,0.13131051]
[1750023074528,1.94300895,105010.0,105000.0,0.13131059]
[1750023074743,1.94300895,105010.0,105000.0,0.12460707]
[1750023075082,1.94300895,105010.0,105000.0,0.13131054]
[1750023075287,1.94300895,105010.0,105000.0,0.13131057]
[1750023075499,1.94300895,105010.0,105000.0,0.12460707]
[1750023076088,1.94300895,105010.0,105000.0,0.13131067]
[1750023076518,1.94300895,105010.0,105000.0,0.12460707]
[1750023077171,1.94300895,105010.0,105000.0,0.13131092]
[1750023077389,1.94300895,105010.0,105000.0,0.12460707]
[1750023077614,1.94300895,105010.0,105000.0,0.13131093]
[1750023078079,1.94300895,105010.0,105000.0,0.12460707]
[1750023078295,1.95917778,105010.0,105000.0,0.13131092]
[1750023078513,1.95917778,105010.0,105000.0,0.1313108]
[1750023078734,1.95917778,105010.0,105000.0,0.13131084]
[1750023078949,1.95917778,105010.0,105000.0,0.12460707]
[1750023079477,1.95917778,105010.0,105000.0,0.13131091]
[1750023079518,1.95917778,105010.0,105000.0,0.12460707]
[1750023080307,1.95917778,105010.0,105000.0,0.13131089]
[1750023080509,1.95917778,105010.0,105000.0,0.13131091]
[1750023080707,1.95917778,105010.0,105000.0,0.12460707]
[1750023080929,1.95917778,105010.0,105000.0,0.13131089]
[1750023081128,1.95917778,105010.0,105000.0,0.12460707]
[1750023081540,1.95917778,105010.0,105000.0,0.1313108]
[1750023081751,1.95917778,105010.0,105000.0,0.13131082]
[1750023082161,1.95917778,105010.0,105000.0,0.12460707]
[1750023082375,1.95917778,105010.0,105000.0,0.1313108]
[1750023082577,1.95917778,105010.0,105000.0,0.12460707]
[1750023082789,1.95917778,105010.0,105000.0,0.13131079]
[1750023082994,1.95917778,105010.0,105000.0,0.06440707]
[1750023083207,1.95917778,105010.0,105000.0,0.07111082]
[1750023083417,1.95917778,105010.0,105000.0,0.06440707]
[1750023083653,1.95917778,105010.0,105000.0,0.07111055]
[1750023083869,1.95917778,105010.0,105000.0,0.06440707]
[1750023084083,1.95917778,105010.0,105000.0,0.07111051]
[1750023084521,1.95917778,105010.0,105000.0,0.09292921]
[1750023084765,1.95917778,105010.0,105000.0,0.0996325]
[1750023084984,1.95917778,105010.0,105000.0,0.07111037]
[1750023085278,1.95917778,105010.0,105000.0,0.07111038]
[1750023085494,1.95917778,105010.0,105000.0,0.09292921]
[1750023085928,1.95917778,105010.0,105000.0,0.13014739]
[1750023086278,1.95917778,105010.0,105000.0,0.13014735]
[1750023086481,1.95917778,105010.0,105000.0,0.13014737]
[1750023086699,1.95917778,105010.0,105000.0,0.13014736]
[1750023086907,1.95917778,105010.0,105000.0,0.12344407]
[1750023087134,0.73251188,105010.0,105000.0,0.13014739]
[1750023087339,1.94300895,105010.0,105000.0,0.13014739]
[1750023087575,1.94300895,105010.0,105000.0,0.12344407]
[1750023087783,1.94300895,105010.0,105000.0,0.13014766]
[1750023087980,1.94300895,105010.0,105000.0,0.13014773]
[1750023088200,1.94296895,105010.0,105000.0,0.12344407]
[1750023088397,2.03911817,105010.0,105000.0,0.12344407]
[1750023088612,2.03911817,105010.0,105000.0,0.09555832]
[1750023088818,2.03911817,105010.0,105000.0,0.09555823]
[1750023089027,2.03911817,105010.0,105000.0,0.09555566]
[1750023089247,2.03911817,105010.0,105000.0,0.09555495]
[1750023089455,2.03911817,105010.0,105000.0,0.09555509]
[1750023089654,2.03911817,105010.0,105000.0,0.08885471]
[1750023089864,2.03911817,105010.0,105000.0,0.12565525]
[1750023090079,2.03911817,105010.0,105000.0,0.12565522]
[1750023090298,2.03911817,105010.0,105000.0,0.11895471]
[1750023090504,2.03911817,105010.0,105000.0,0.12565519]
[1750023090728,2.03911817,105010.0,105000.0,0.12565491]
[1750023090942,2.03911817,105010.0,105000.0,0.14477155]
[1750023091155,2.03911817,105010.0,105000.0,0.12565155]
[1750023091355,2.03911817,105010.0,105000.0,0.12565181]
[1750023091780,2.03911817,105010.0,105000.0,0.12565218]
[1750023091983,2.03911817,105010.0,105000.0,0.12565212]
[1750023092192,2.03911817,105010.0,105000.0,0.09036876]
[1750023092403,2.03911817,105010.0,105000.0,0.0970661]
[1750023092610,1.94296895,105010.0,105000.0,0.12565205]
[1750023092823,1.94296895,105010.0,105000.0,0.12565204]
[1750023093030,1.94296895,105010.0,105000.0,0.06515206]
[1750023093243,1.94296895,105010.0,105000.0,0.09515205]
[1750023093437,1.94296895,105010.0,105000.0,0.09515217]
[1750023093651,1.94296895,105010.0,105000.0,0.11855471]
[1750023093857,1.94296895,105010.0,105000.0,0.12525214]
[1750023094089,1.94296895,105010.0,105000.0,0.11855471]
[1750023094291,1.94296895,105010.0,105000.0,0.12525197]
[1750023094559,1.94296895,105010.0,105000.0,0.12525178]
[1750023094729,1.94296895,105010.0,105000.0,0.12525181]
[1750023095172,1.94296895,105010.0,105000.0,0.11855471]
[1750023095386,2.03911817,105010.0,105000.0,0.11855471]
[1750023095603,1.70876504,105010.0,105000.0,0.08996876]
[1750023095809,1.89922309,105010.0,105000.0,0.08996876]
[1750023096018,1.89922309,105010.0,105000.0,0.09666598]
[1750023096241,1.89922309,105010.0,105000.0,0.09666592]
[1750023096457,1.89922309,105010.0,105000.0,0.08996876]
[1750023096672,1.89922309,105010.0,105000.0,0.09666908]
[1750023096888,1.89922309,105010.0,105000.0,0.08996876]
[1750023097336,1.89922309,105010.0,105000.0,0.09666901]
[1750023097554,1.89922309,105010.0,105000.0,0.08996876]
[1750023097771,1.89922309,105010.0,105000.0,0.09666904]
[1750023097987,1.89922309,105010.0,105000.0,0.08996876]
[1750023098198,1.89922309,105010.0,105000.0,0.09666904]
[1750023098417,1.89922309,105010.0,105000.0,0.09666905]
[1750023098628,1.89922309,105010.0,105000.0,0.09666904]
[1750023098847,1.89922309,105010.0,105000.0,0.08996876]
[1750023099057,1.89922309,105010.0,105000.0,0.09666893]
[1750023099708,1.89922309,105010.0,105000.0,0.09666894]
[1750023099926,1.89922309,105010.0,105000.0,0.09666896]
[1750023100363,1.89922309,105010.0,105000.0,0.09666897]
[1750023100580,1.89922309,105010.0,105000.0,0.09666913]
[1750023100796,1.87057809,105010.0,105000.0,0.09666911]
[1750023100995,1.87057809,105010.0,105000.0,0.08996876]
[1750023101643,1.87057809,105010.0,105000.0,0.09666908]
[1750023101850,1.87057809,105010.0,105000.0,0.09666899]
[1750023102057,1.87057809,105010.0,105000.0,0.096669]
[1750023102687,1.87057809,105010.0,105000.0,0.09666904]
[1750023103321,1.87057809,105010.0,105000.0,0.08996876]
[1750023103533,1.87057809,105010.0,105000.0,0.09666902]
[1750023103768,1.87057809,105010.0,105000.0,0.08996876]
[1750023103981,1.87057809,105010.0,105000.0,0.09666899]
[1750023104192,1.25724514,105010.0,105000.0,0.09666899]
[1750023104417,1.25724514,105010.0,105000.0,0.09666842]
[1750023104611,1.25724514,105010.0,105000.0,0.09666841]
[1750023104823,1.25724514,105010.0,105000.0,0.08996876]
[1750023105270,1.25724514,105010.0,105000.0,0.09666843]
[1750023105475,1.25724514,105010.0,105000.0,0.09666844]
[1750023105695,1.25724514,105010.0,105000.0,0.12525439]
[1750023106324,1.25724514,105010.0,105000.0,0.12524521]
[1750023106536,1.25724514,105010.0,105000.0,0.09666435]
[1750023106779,1.25724514,105010.0,105000.0,0.0671]
[1750023106987,1.25724514,105010.0,105000.0,0.07379969]
[1750023107199,1.25724514,105010.0,105000.0,0.0671]
[1750023107411,1.25724514,105010.0,105000.0,0.12524429]
[1750023107614,1.25724514,105010.0,105000.0,0.12524424]
[1750023107810,1.25724514,105010.0,105000.0,0.11854463]
[1750023108018,1.25724514,105010.0,105000.0,0.12524426]
[1750023108715,1.25724514,105010.0,105000.0,0.0671]
[1750023108927,1.25724514,105010.0,105000.0,0.11854443]
[1750023109143,1.25724514,105010.0,105000.0,0.09666383]
[1750023109359,1.25724514,105010.0,105000.0,0.0671]
[1750023109563,1.25724514,105010.0,105000.0,0.07379963]
[1750023110030,1.25724514,105010.0,105000.0,0.12524431]
[1750023110263,1.25724514,105010.0,105000.0,0.12524435]
[1750023110503,1.25724514,105010.0,105000.0,0.1252443]
[1750023110707,1.25724514,105010.0,105000.0,0.07379965]
[1750023110929,1.25724514,105010.0,105000.0,0.08996428]
[1750023111850,1.25724514,105010.0,105000.0,0.09889718]
[1750023112067,1.25724514,105010.0,105000.0,0.12747754]
[1750023112278,1.25724514,105010.0,105000.0,0.13417715]
[1750023112509,1.10004514,105010.0,105000.0,0.13417711]
[1750023112713,1.26668786,105010.0,105000.0,0.13417706]
[1750023112926,1.26668786,105010.0,105000.0,0.11854464]
[1750023113133,1.26668786,105010.0,105000.0,0.13417614]
[1750023113350,1.26668786,105010.0,105000.0,0.11854464]
[1750023113558,1.26668786,105010.0,105000.0,0.12524388]
[1750023113777,0.30577658,105010.0,105000.0,0.13417624]
[1750023113982,0.30577658,105010.0,105000.0,0.13417607]
[1750023113983,1.11431994,105010.0,105000.0,0.13417607]
[1750023114216,1.30477799,105010.0,105000.0,0.12524355]
[1750023114436,1.30477799,105010.0,105000.0,0.12524368]
[1750023114576,1.30477799,105010.0,105000.0,0.13417364]
[1750023114799,1.30477799,105010.0,105000.0,0.13417187]
[1750023115005,1.30477799,105010.0,105000.0,0.1252419]
[1750023115203,1.30477799,105010.0,105000.0,0.12524185]
[1750023115409,1.11431994,105010.0,105000.0,0.12524185]
[1750023115668,1.11431994,105010.0,105000.0,0.11854464]
[1750023115870,1.11431994,105010.0,105000.0,0.125242]
[1750023116473,1.11431994,105010.0,105000.0,0.11854464]
[1750023116678,1.11431994,105010.0,105000.0,0.12524204]
[1750023117126,0.50098699,105010.0,105000.0,0.12524204]
[1750023117263,1.11431994,105010.0,105000.0,0.12524204]
[1750023117466,1.11431994,105010.0,105000.0,0.11854464]
[1750023117717,1.11431994,105010.0,105000.0,0.12524188]
[1750023118145,1.11431994,105010.0,105000.0,0.11854464]
[1750023118358,1.11431994,105010.0,105000.0,0.12524183]
[1750023118556,1.11431994,105010.0,105000.0,0.11854464]
[1750023118779,1.11431994,105010.0,105000.0,0.12524156]
[1750023119134,1.11431994,105010.0,105000.0,0.11854464]
[1750023119469,1.11431994,105010.0,105000.0,0.12524149]
[1750023119671,1.30477799,105010.0,105000.0,0.11854464]
[1750023119894,1.30477799,105010.0,105000.0,0.12524148]
[1750023120081,1.30477799,105010.0,105000.0,0.11854464]
[1750023120286,1.30477799,105010.0,105000.0,0.12524145]
[1750023121085,1.30477799,105010.0,105000.0,0.12524303]
[1750023121337,1.40092721,105010.0,105000.0,0.12524303]
[1750023121484,1.40092721,105010.0,105000.0,0.11854464]
[1750023121687,1.30477799,105010.0,105000.0,0.12524303]
[1750023122341,1.30477799,105010.0,105000.0,0.11854464]
[1750023122760,1.30477799,105010.0,105000.0,0.12524389]
[1750023122965,1.30477799,105010.0,105000.0,0.12524394]
[1750023123175,1.30477799,105010.0,105000.0,0.11854464]
[1750023123393,1.30477799,105010.0,105000.0,0.12524399]
[1750023123611,1.30477799,105010.0,105000.0,0.125244]
[1750023123814,1.30477799,105010.0,105000.0,0.11854464]
[1750023124298,1.30477799,105010.0,105000.0,0.12524461]
[1750023124504,1.30477799,105010.0,105000.0,0.11854464]
[1750023124711,1.30477799,105010.0,105000.0,0.12524503]
[1750023124921,1.11431994,105010.0,105000.0,0.12524505]
[1750023125389,1.11431994,105010.0,105000.0,0.11854464]
[1750023125600,1.11431994,105010.0,105000.0,0.12524505]
[1750023125811,1.11431994,105010.0,105000.0,0.11854464]
[1750023126015,1.10479704,105010.0,105000.0,0.12524532]
[1750023126425,1.10479704,105010.0,105000.0,0.11854464]
[1750023126864,1.10479704,105010.0,105000.0,0.12524554]
[1750023127662,1.10479704,105010.0,105000.0,0.11854464]
[1750023127867,1.10479704,105010.0,105000.0,0.12524554]
[1750023128180,1.10479704,105010.0,105000.0,0.11854464]
[1750023128551,1.10479704,105010.0,105000.0,0.12524533]
[1750023128801,1.10479704,105010.0,105000.0,0.12524516]
[1750023129245,1.10479704,105010.0,105000.0,0.11854464]
[1750023129430,1.10479704,105010.0,105000.0,0.12524516]
[1750023129808,1.10479704,105010.0,105000.0,0.11854464]
[1750023130019,1.10479704,105010.0,105000.0,0.12524479]
[1750023130220,1.20094626,105010.0,105000.0,0.1252447]
[1750023130420,1.39140431,105010.0,105000.0,0.11854464]
[1750023130622,1.29525509,105010.0,105000.0,0.11854464]
[1750023130946,1.29525509,105010.0,105000.0,0.12524461]
[1750023131278,1.30477799,105010.0,105000.0,0.12524485]
[1750023131527,1.10479704,105010.0,105000.0,0.11854464]
[1750023131768,1.10479704,105010.0,105000.0,0.12524498]
[1750023131974,1.10479704,105010.0,105000.0,0.11854464]
[1750023132432,1.10479704,105010.0,105000.0,0.12747841]
[1750023132927,1.10479704,105010.0,105000.0,0.12524496]
[1750023133153,1.10479704,105010.0,105000.0,0.1274784]
[1750023133381,1.10479704,105010.0,105000.0,0.12524496]
[1750023133606,1.10479704,105010.0,105000.0,0.1274784]
[1750023133822,1.10479704,105010.0,105000.0,0.13417873]
[1750023134038,1.40092721,105010.0,105000.0,0.13417873]
[1750023134253,1.21046916,105010.0,105000.0,0.13417873]
[1750023134600,1.21046916,105010.0,105000.0,0.12747841]
[1750023134601,1.39140504,105010.0,105000.0,0.12747841]
[1750023135208,1.39140504,105010.0,105000.0,0.1274784]
[1750023135455,1.39140504,105010.0,105000.0,0.12524496]
[1750023135650,1.39140504,105010.0,105000.0,0.12524495]
[1750023135862,1.39140504,105010.0,105000.0,0.12524496]
[1750023136268,1.99521555,105010.0,105000.0,0.0671]
[1750023136479,1.3818826,105010.0,105000.0,0.11854924]
[1750023136687,1.37236007,105010.0,105000.0,0.11854924]
[1750023136917,1.40100607,105010.0,105000.0,0.11854924]
[1750023137117,1.40100607,105010.0,105000.0,0.12524956]
[1750023137524,1.40100607,105010.0,105000.0,0.11854924]
[1750023137732,1.40100607,105010.0,105000.0,0.12524956]
[1750023137933,1.40100607,105010.0,105000.0,0.11854924]
[1750023138353,1.40100607,105010.0,105000.0,0.125249]
[1750023138557,1.40100607,105010.0,105000.0,0.12524908]
[1750023138763,1.40100607,105010.0,105000.0,0.1252492]
[1750023138996,1.40100607,105010.0,105000.0,0.12524925]
[1750023139216,1.40100607,105010.0,105000.0,0.12524926]
[1750023139420,1.40100607,105010.0,105000.0,0.11854924]
[1750023139621,1.40100607,105010.0,105000.0,0.12524926]
[1750023140039,1.40100607,105010.0,105000.0,0.11854924]
[1750023140254,1.40100607,105010.0,105000.0,0.12524927]
[1750023140505,1.40100607,105010.0,105000.0,0.11854924]
[1750023141314,1.40100607,105010.0,105000.0,0.12524923]
[1750023141521,1.40100607,105010.0,105000.0,0.11854924]
[1750023141734,1.40100607,105010.0,105000.0,0.12524923]
[1750023142446,1.40100607,105010.0,105000.0,0.11854924]
[1750023142664,1.40100607,105010.0,105000.0,0.12524949]
[1750023142862,1.40100607,105010.0,105000.0,0.1252496]
[1750023143509,1.40100607,105010.0,105000.0,0.12524958]
[1750023143719,1.40100607,105010.0,105000.0,0.12524951]
[1750023143926,0.63055312,105010.0,105000.0,0.12524951]
[1750023144149,1.11431843,105010.0,105000.0,0.12524952]
[1750023144394,1.11431843,105010.0,105000.0,0.12524935]
[1750023144601,1.11431843,105010.0,105000.0,0.12524958]
[1750023144810,1.11431843,105010.0,105000.0,0.12524934]
[1750023145229,1.31429938,105010.0,105000.0,0.11854924]
[1750023145459,1.31429938,105010.0,105000.0,0.12524934]
[1750023145905,1.01804524,105010.0,105000.0,0.09666645]
[1750023146119,1.01804524,105010.0,105000.0,0.08996633]
[1750023146337,1.01804524,105010.0,105000.0,0.09666646]
[1750023146554,1.01804524,105010.0,105000.0,0.09666663]
[1750023146775,0.81806429,105010.0,105000.0,0.09666665]
[1750023146993,0.81806374,105010.0,105000.0,0.09666662]
[1750023147200,0.82758646,105010.0,105000.0,0.09666667]
[1750023147411,0.82758646,105010.0,105000.0,0.09666664]
[1750023147619,0.82758646,105010.0,105000.0,0.09666663]
[1750023148135,0.20473079,105010.0,105000.0,0.09666658]
[1750023148223,0.81806374,105010.0,105000.0,0.09666653]
[1750023148421,0.82758646,105010.0,105000.0,0.09666654]
[1750023148630,0.81806374,105010.0,105000.0,0.09666654]
[1750023148859,0.82758646,105010.0,105000.0,0.09666654]
[1750023149289,0.81806374,105010.0,105000.0,0.09666654]
[1750023149499,0.82518646,105010.0,105000.0,0.09666654]
[1750023149709,0.81566374,105010.0,105000.0,0.09666661]
[1750023149916,0.82518646,105010.0,105000.0,0.09666662]
[1750023150126,0.82518646,105010.0,105000.0,0.09666669]
[1750023150339,0.82518646,105010.0,105000.0,0.09666664]
[1750023150555,0.82518646,105010.0,105000.0,0.09666663]
[1750023150800,0.82518646,105010.0,105000.0,0.08996633]
[1750023151013,0.82518646,105010.0,105000.0,0.09666637]
[1750023151225,0.82518646,105010.0,105000.0,0.09666649]
[1750023151434,0.82518646,105010.0,105000.0,0.09666661]
[1750023151647,0.81566374,105010.0,105000.0,0.09666585]
[1750023151872,0.81566374,105010.0,105000.0,0.08996633]
[1750023152105,0.81566374,105010.0,105000.0,0.09666588]
[1750023152323,0.82518637,105010.0,105000.0,0.09666588]
[1750023152969,0.82518637,105010.0,105000.0,0.09666584]
[1750023153178,0.82518637,105010.0,105000.0,0.08996633]
[1750023153392,0.92133559,105010.0,105000.0,0.08996633]
[1750023153609,0.92133559,105010.0,105000.0,0.09666602]
[1750023153824,0.92133559,105010.0,105000.0,0.09666603]
[1750023154037,0.92133559,105010.0,105000.0,0.096666]
[1750023154253,0.92133559,105010.0,105000.0,0.08996633]
[1750023154501,0.92133559,105010.0,105000.0,0.09666773]
[1750023154715,0.92133559,105010.0,105000.0,0.09666799]
[1750023154899,0.92133559,105010.0,105000.0,0.08996633]
[1750023155046,0.92133559,105010.0,105000.0,0.09666805]
[1750023155249,0.91181287,105010.0,105000.0,0.08996633]
[1750023155454,0.91181287,105010.0,105000.0,0.09666796]
[1750023155679,0.91181287,105010.0,105000.0,0.08996633]